[Event "Is Bankasi Online Satranc Turn 17-18 YAS"]
[Site "T#646243Mustafa Kemal"]
[Date "2020.05.22"]
[Round "4"]
[White "Emrecankaratas76"]
[Black "Emrekocakaplan04"]
[Result "1/2-1/2"]
[WhiteElo "1620"]
[BlackElo "1752"]
[Annotator "NA RC"]
[PlyCount "127"]
[EventDate "2020.05.22"]
[EventType "swiss (blitz)"]
[TimeControl "180+2"]

1. e4 {[%emt 0:00:07]} c5 {[%emt 0:00:02]} 2. Nf3 {[%emt 0:00:04]} Nc6 {[%emt 0:00:01]} 3. d4 {[%emt 0:00:01]} cxd4 {[%emt 0:00:01]} 4. Nxd4 {[%emt 0:00:00]} Nf6 {[%emt 0:00:01]} 5. Nc3 {[%emt 0:00:01]} e5 {[%emt 0:00:01]} 6. Ndb5 {[%emt 0:00:01]} d6 {[%emt 0:00:01]} 7. Na3 {[%emt 0:00:22]} Be7 {[%emt 0:00:17]} 8. Bg5 {[%emt 0:00:01]} O-O {[%emt 0:00:25]} 9. Be2 {[%emt 0:00:01]} Nxe4 {[%emt 0:01:30]} 10. Bxe7 {[%emt 0:00:56]} Nxc3 {[%emt 0:00:01]} 11. Bxd8 {[%emt 0:00:01]} Nxd1 {[%emt 0:00:01]} 12. Rxd1 {[%emt 0:00:00]} Rxd8 {[%emt 0:00:02]} 13. Nb5 {[%emt 0:00:01]} Bf5 {[%emt 0:00:33]} 14. c3 {[%emt 0:00:24]} Be6 {[%emt 0:00:29]} 15. Nc7 {[%emt 0:00:01]} Rac8 {[%emt 0:00:02]} 16. Nxe6 {[%emt 0:00:02]} fxe6 {[%emt 0:00:00]} 17. Bf3 {[%emt 0:00:01]} d5 {[%emt 0:00:01]} 18. Bg4 {[%emt 0:00:01]} Kf7 {[%emt 0:00:02]} 19. O-O {[%emt 0:00:01]} Ke7 {[%emt 0:00:03]} 20. f4 {[%emt 0:00:00]} exf4 {[%emt 0:00:03]} 21. Rxf4 {[%emt 0:00:02]} Rf8 {[%emt 0:00:01]} 22. Ra4 {[%emt 0:00:03]} a6 {[%emt 0:00:03]} 23. Re1 {[%emt 0:00:02]} Rf6 {[%emt 0:00:01]} 24. Bh3 {[%emt 0:00:03]} Rcf8 {[%emt 0:00:01]} 25. Rh4 {[%emt 0:00:03]} h6 {[%emt 0:00:02]} 26. Rh5 {[%emt 0:00:05]} e5 {[%emt 0:00:06]} 27. g3 {[%emt 0:00:06]} Kd6 {[%emt 0:00:01]} 28. Bg2 {[%emt 0:00:01]} Rf5 {[%emt 0:00:02]} 29. Rh4 {[%emt 0:00:03]} e4 {[%emt 0:00:02]} 30. Rg4 {[%emt 0:00:03]} g5 {[%emt 0:00:01]} 31. Rd1 {[%emt 0:00:03]} Ne5 {[%emt 0:00:01]} 32. Rxe4 {[%emt 0:00:02]} Nf3+ {[%emt 0:00:03]} 33. Bxf3 {[%emt 0:00:01]} Rxf3 {[%emt 0:00:00]} 34. Red4 {[%emt 0:00:01]} R8f5 {[%emt 0:00:02]} 35. Rb4 {[%emt 0:00:01]} b5 {[%emt 0:00:01]} 36. Rbd4 {[%emt 0:00:03]} Re3 {[%emt 0:00:04]} 37. a3 {[%emt 0:00:05]} Re2 {[%emt 0:00:01]} 38. R1d2 {[%emt 0:00:03]} Rxd2 {[%emt 0:00:03]} 39. Rxd2 {[%emt 0:00:00]} Kc5 {[%emt 0:00:00]} 40. Kg2 {[%emt 0:00:02]} Kc4 {[%emt 0:00:02]} 41. g4 {[%emt 0:00:03]} Re5 {[%emt 0:00:02]} 42. Kf3 {[%emt 0:00:01]} Kb3 {[%emt 0:00:01]} 43. h3 {[%emt 0:00:05]} a5 {[%emt 0:00:02]} 44. Kg3 {[%emt 0:00:04]} a4 {[%emt 0:00:03]} 45. h4 {[%emt 0:00:01]} Ka2 {[%emt 0:00:01]} 46. hxg5 {[%emt 0:00:01]} hxg5 {[%emt 0:00:00]} 47. Kf3 {[%emt 0:00:01]} Kb1 {[%emt 0:00:01]} 48. Rh2 {[%emt 0:00:02]} Re1 {[%emt 0:00:08]} 49. Rd2 {[%emt 0:00:01]} Re5 {[%emt 0:00:02]} 50. Rh2 {[%emt 0:00:02]} Re4 {[%emt 0:00:03]} 51. Rh5 {[%emt 0:00:04]} Kxb2 {[%emt 0:00:03]} 52. Rxg5 {[%emt 0:00:01]} Kxc3 {[%emt 0:00:01]} 53. Rxd5 {[%emt 0:00:01]} Kb3 {[%emt 0:00:01]} 54. Rxb5+ {[%emt 0:00:01]} Kxa3 {[%emt 0:00:01]} 55. g5 {[%emt 0:00:01]} Re8 {[%emt 0:00:01]} 56. Kf4 {[%emt 0:00:01]} Ka2 {[%emt 0:00:03]} 57. Ra5 {[%emt 0:00:02]} a3 {[%emt 0:00:01]} 58. g6 {[%emt 0:00:01]} Re1 {[%emt 0:00:02]} 59. Kg5 {[%emt 0:00:01]} Rg1+ {[%emt 0:00:01]} 60. Kh6 {[%emt 0:00:01]} Kb2 {[%emt 0:00:01]} 61. Kg7 {[%emt 0:00:01]} a2 {[%emt 0:00:01]} 62. Rb5+ {[%emt 0:00:03]} Ka1 {[%emt 0:00:02]} 63. Kf7 {[%emt 0:00:03]} Rxg6 {[%emt 0:00:03]} 64. Kxg6 {[%emt 0:00:01] (Lag: Av=0.44s, max=0.9s)} 1/2-1/2

[Event "Is Bankasi Online Satranc Turn 17-18 YAS"]
[Site "T#646243Mustafa Kemal"]
[Date "2020.05.22"]
[Round "4"]
[White "Hakansimsek70"]
[Black "Burakcanaksoz58"]
[Result "1-0"]
[WhiteElo "1620"]
[BlackElo "1749"]
[Annotator "NA RC"]
[PlyCount "67"]
[EventDate "2020.05.22"]
[EventType "swiss (blitz)"]
[TimeControl "180+2"]

1. e4 {[%emt 0:00:04]} c5 {[%emt 0:00:01]} 2. Nc3 {[%emt 0:00:02]} Nc6 {[%emt 0:00:01]} 3. f4 {[%emt 0:00:01]} e6 {[%emt 0:00:02]} 4. Nf3 {[%emt 0:00:03]} d5 {[%emt 0:00:02]} 5. d3 {[%emt 0:00:04]} Be7 {[%emt 0:00:07]} 6. g3 {[%emt 0:00:05]} Nf6 {[%emt 0:00:09]} 7. Bg2 {[%emt 0:00:08]} O-O {[%emt 0:00:08]} 8. O-O {[%emt 0:00:11]} b6 {[%emt 0:00:17]} 9. e5 {[%emt 0:00:10]} Nd7 {[%emt 0:00:04]} 10. Bd2 {[%emt 0:00:16]} Bb7 {[%emt 0:00:04]} 11. Qe2 {[%emt 0:00:05]} Rc8 {[%emt 0:00:26]} 12. a3 {[%emt 0:00:03]} a6 {[%emt 0:00:11]} 13. Rad1 {[%emt 0:00:03]} b5 {[%emt 0:00:05]} 14. g4 {[%emt 0:00:09]} c4 {[%emt 0:00:13]} 15. d4 {[%emt 0:00:04]} Qb6 {[%emt 0:00:13]} 16. Be3 {[%emt 0:00:06]} b4 {[%emt 0:00:20]} 17. axb4 {[%emt 0:00:02]} Nxb4 {[%emt 0:00:09]} 18. f5 {[%emt 0:00:02]} a5 {[%emt 0:00:38]} 19. Ng5 {[%emt 0:00:14]} Bxg5 {[%emt 0:00:10]} 20. Bxg5 {[%emt 0:00:01]} Nc6 {[%emt 0:00:02]} 21. Qd2 {[%emt 0:00:33]} Ba6 {[%emt 0:00:11]} 22. f6 {[%emt 0:00:01]} Qxb2 {[%emt 0:00:02]} 23. Rb1 {[%emt 0:00:09]} Qa3 {[%emt 0:00:01]} 24. Ra1 {[%emt 0:00:09]} Qb4 {[%emt 0:00:02]} 25. Rfb1 {[%emt 0:00:04]} Qxb1+ {[%emt 0:00:01]} 26. Rxb1 {[%emt 0:00:00]} Nb4 {[%emt 0:00:01]} 27. fxg7 {[%emt 0:00:03]} Kxg7 {[%emt 0:00:01]} 28. Bh6+ {[%emt 0:00:06]} Kh8 {[%emt 0:00:01]} 29. Rf1 {[%emt 0:00:15]} a4 {[%emt 0:00:09]} 30. Bxf8 {[%emt 0:00:01]} Rxf8 {[%emt 0:00:01]} 31. Qh6 {[%emt 0:00:07]} Rg8 {[%emt 0:00:02]} 32. Rxf7 {[%emt 0:00:04]} Nf8 {[%emt 0:00:01]} 33. Qf6+ {[%emt 0:00:03]} Rg7 {[%emt 0:00:04]} 34. Rxf8# {[%emt 0:00:01] (Lag: Av=0.88s, max=1.9s)} 1-0

[Event "Is Bankasi Online Satranc Turn 17-18 YAS"]
[Site "T#646243Mustafa Kemal"]
[Date "2020.05.22"]
[Round "4"]
[White "Ahmetburakgurs66"]
[Black "batuhantasagil42"]
[Result "1-0"]
[WhiteElo "1593"]
[BlackElo "1530"]
[Annotator "NA RC"]
[PlyCount "55"]
[EventDate "2020.05.22"]
[EventType "swiss (blitz)"]
[TimeControl "180+2"]

1. d4 {[%emt 0:00:02]} Nf6 {[%emt 0:00:05]} 2. c4 {[%emt 0:00:01]} e6 {[%emt 0:00:08]} 3. Nc3 {[%emt 0:00:01]} d5 {[%emt 0:00:07]} 4. Bg5 {[%emt 0:00:01]} dxc4 {[%emt 0:00:05]} 5. e4 {[%emt 0:00:02]} Bb4 {[%emt 0:00:05]} 6. Qa4+ {[%emt 0:00:03]} Nc6 {[%emt 0:00:04]} 7. d5 {[%emt 0:00:01]} Bxc3+ {[%emt 0:00:03]} 8. bxc3 {[%emt 0:00:02]} exd5 {[%emt 0:00:04]} 9. exd5 {[%emt 0:00:03]} Qe7+ {[%emt 0:00:10]} 10. Be2 {[%emt 0:00:05]} Qe5 {[%emt 0:00:13]} 11. Bd2 {[%emt 0:00:14]} Qxd5 {[%emt 0:00:07]} 12. Nf3 {[%emt 0:00:01]} Bg4 {[%emt 0:00:08]} 13. O-O {[%emt 0:00:04]} Qe6 {[%emt 0:00:13]} 14. Nd4 {[%emt 0:00:04]} Qd6 {[%emt 0:00:11]} 15. Bxg4 {[%emt 0:00:08]} Nxg4 {[%emt 0:00:03]} 16. Rfe1+ {[%emt 0:00:03]} Nge5 {[%emt 0:00:18]} 17. f4 {[%emt 0:00:03]} O-O {[%emt 0:00:07]} 18. fxe5 {[%emt 0:00:02]} Nxe5 {[%emt 0:00:03]} 19. Bf4 {[%emt 0:00:04]} Rfe8 {[%emt 0:00:04]} 20. Rad1 {[%emt 0:00:08]} Qf6 {[%emt 0:00:05]} 21. Rf1 {[%emt 0:00:07]} Ng6 {[%emt 0:00:21]} 22. Bg3 {[%emt 0:00:06]} Qa6 {[%emt 0:00:10]} 23. Qxa6 {[%emt 0:00:04]} bxa6 {[%emt 0:00:01]} 24. Bxc7 {[%emt 0:00:07]} Ne5 {[%emt 0:00:02]} 25. Bxe5 {[%emt 0:00:06]} Rxe5 {[%emt 0:00:01]} 26. Nc6 {[%emt 0:00:06]} Ree8 {[%emt 0:00:11]} 27. Rd7 {[%emt 0:00:04]} Rac8 {[%emt 0:00:07]} 28. Ne7+ {[%emt 0:00:01] batuhantasagil42 terk eder (Lag: Av=0.61s, max=0.9s)} 1-0

[Event "Is Bankasi Online Satranc Turn 17-18 YAS"]
[Site "T#646243Mustafa Kemal"]
[Date "2020.05.22"]
[Round "4"]
[White "Bugrahansahin14"]
[Black "Orhanerenkarab68"]
[Result "1/2-1/2"]
[WhiteElo "1583"]
[BlackElo "1583"]
[Annotator "NA RC"]
[PlyCount "106"]
[EventDate "2020.05.22"]
[EventType "swiss (blitz)"]
[TimeControl "180+2"]

1. e4 {[%emt 0:00:02]} e5 {[%emt 0:00:01]} 2. Nf3 {[%emt 0:00:01]} Nc6 {[%emt 0:00:01]} 3. Bc4 {[%emt 0:00:01]} Bc5 {[%emt 0:00:02]} 4. d3 {[%emt 0:00:08]} d6 {[%emt 0:00:01]} 5. Ng5 {[%emt 0:00:18]} Nh6 {[%emt 0:00:06]} 6. c3 {[%emt 0:00:08]} O-O {[%emt 0:00:04]} 7. h3 {[%emt 0:00:05]} Kh8 {[%emt 0:00:02]} 8. Qf3 {[%emt 0:00:11]} f6 {[%emt 0:00:02]} 9. Ne6 {[%emt 0:00:10]} Bxe6 {[%emt 0:00:03]} 10. Bxe6 {[%emt 0:00:01]} Qe7 {[%emt 0:00:01]} 11. Bxh6 {[%emt 0:00:04]} Qxe6 {[%emt 0:00:03]} 12. Bd2 {[%emt 0:00:06]} Rad8 {[%emt 0:00:03]} 13. b4 {[%emt 0:00:09]} Bb6 {[%emt 0:00:01]} 14. O-O {[%emt 0:00:08]} d5 {[%emt 0:00:02]} 15. exd5 {[%emt 0:00:01]} Qxd5 {[%emt 0:00:01]} 16. Be3 {[%emt 0:00:01]} Bxe3 {[%emt 0:00:13]} 17. Qxd5 {[%emt 0:00:04]} Rxd5 {[%emt 0:00:02]} 18. fxe3 {[%emt 0:00:01]} Rxd3 {[%emt 0:00:01]} 19. e4 {[%emt 0:00:01]} Rfd8 {[%emt 0:00:02]} 20. Na3 {[%emt 0:00:02]} Rxc3 {[%emt 0:00:01]} 21. Nb5 {[%emt 0:00:01]} Rc4 {[%emt 0:00:05]} 22. Nxc7 {[%emt 0:00:06]} Nd4 {[%emt 0:00:02]} 23. Nd5 {[%emt 0:00:06]} Ne2+ {[%emt 0:00:04]} 24. Kh2 {[%emt 0:00:02]} Rxe4 {[%emt 0:00:03]} 25. Rae1 {[%emt 0:00:04]} Rxd5 {[%emt 0:00:07]} 26. a3 {[%emt 0:00:04]} Nc3 {[%emt 0:00:04]} 27. Rc1 {[%emt 0:00:03]} Rc4 {[%emt 0:00:05]} 28. Rf3 {[%emt 0:00:07]} g5 {[%emt 0:00:21]} 29. Rfxc3 {[%emt 0:00:03]} Rxc3 {[%emt 0:00:01]} 30. Rxc3 {[%emt 0:00:01]} a6 {[%emt 0:00:02]} 31. Rc7 {[%emt 0:00:07]} Rd3 {[%emt 0:00:09]} 32. Rxb7 {[%emt 0:00:03]} Rxa3 {[%emt 0:00:02]} 33. Rb6 {[%emt 0:00:01]} Rb3 {[%emt 0:00:04]} 34. Rxa6 {[%emt 0:00:02]} f5 {[%emt 0:00:08]} 35. Ra5 {[%emt 0:00:03]} Rxb4 {[%emt 0:00:05]} 36. Rxe5 {[%emt 0:00:01]} Rf4 {[%emt 0:00:01]} 37. g3 {[%emt 0:00:09]} Rf2+ {[%emt 0:00:08]} 38. Kg1 {[%emt 0:00:01]} Rf3 {[%emt 0:00:01]} 39. Kg2 {[%emt 0:00:01]} Rd3 {[%emt 0:00:05]} 40. Rxf5 {[%emt 0:00:01]} h6 {[%emt 0:00:05]} 41. Rf7 {[%emt 0:00:02]} Kg8 {[%emt 0:00:06]} 42. Rc7 {[%emt 0:00:04]} Kh8 {[%emt 0:00:02]} 43. Kf2 {[%emt 0:00:08]} Kg8 {[%emt 0:00:01]} 44. Kg2 {[%emt 0:00:02]} Kh8 {[%emt 0:00:06]} 45. Rc4 {[%emt 0:00:17]} Kg7 {[%emt 0:00:06]} 46. h4 {[%emt 0:00:01]} Kg6 {[%emt 0:00:06]} 47. Rg4 {[%emt 0:00:11]} Rd5 {[%emt 0:00:10]} 48. Kf3 {[%emt 0:00:08]} Kf5 {[%emt 0:00:03]} 49. hxg5 {[%emt 0:00:03]} Rd3+ {[%emt 0:00:03]} 50. Ke2 {[%emt 0:00:04]} hxg5 {[%emt 0:00:16]} 51. Rxg5+ {[%emt 0:00:10]} Kxg5 {[%emt 0:00:01]} 52. Kxd3 {[%emt 0:00:01]} Kg4 {[%emt 0:00:01]} 53. Ke3 {[%emt 0:00:00]} Kxg3 {[%emt 0:00:01] (Lag: Av=0.77s, max=1.2s)} 1/2-1/2

[Event "Is Bankasi Online Satranc Turn 17-18 YAS"]
[Site "T#646243Mustafa Kemal"]
[Date "2020.05.22"]
[Round "4"]
[White "Merttosun42"]
[Black "Ahmetay38"]
[Result "1-0"]
[WhiteElo "1583"]
[BlackElo "1620"]
[Annotator "NA RC"]
[PlyCount "63"]
[EventDate "2020.05.22"]
[EventType "swiss (blitz)"]
[TimeControl "180+2"]

1. e4 {[%emt 0:00:02]} c6 {[%emt 0:00:01]} 2. c4 {[%emt 0:00:03]} d5 {[%emt 0:00:01]} 3. cxd5 {[%emt 0:00:01]} cxd5 {[%emt 0:00:01]} 4. Bb5+ {[%emt 0:00:08]} Nc6 {[%emt 0:00:04]} 5. Qa4 {[%emt 0:00:13]} Bd7 {[%emt 0:00:03]} 6. exd5 {[%emt 0:00:02]} Nf6 {[%emt 0:00:07]} 7. dxc6 {[%emt 0:00:03]} bxc6 {[%emt 0:00:01]} 8. Bxc6 {[%emt 0:00:04]} Bxc6 {[%emt 0:00:02]} 9. Qxc6+ {[%emt 0:00:02]} Nd7 {[%emt 0:00:03]} 10. d4 {[%emt 0:00:09]} Rc8 {[%emt 0:00:03]} 11. Qe4 {[%emt 0:00:39]} Rxc1+ {[%emt 0:00:04]} 12. Ke2 {[%emt 0:00:01]} Nf6 {[%emt 0:00:24]} 13. Qe3 {[%emt 0:00:11]} Rc2+ {[%emt 0:00:05]} 14. Nd2 {[%emt 0:00:05]} e6 {[%emt 0:00:12]} 15. a3 {[%emt 0:00:14]} Rxb2 {[%emt 0:00:19]} 16. Ngf3 {[%emt 0:00:07]} Ng4 {[%emt 0:00:05]} 17. Qc3 {[%emt 0:00:12]} Rb7 {[%emt 0:00:15]} 18. h3 {[%emt 0:00:09]} Nf6 {[%emt 0:00:05]} 19. Ne5 {[%emt 0:00:21]} Qd6 {[%emt 0:00:28]} 20. Qc8+ {[%emt 0:00:22]} Qd8 {[%emt 0:00:16]} 21. Qxb7 {[%emt 0:00:02]} Bd6 {[%emt 0:00:09]} 22. Qc6+ {[%emt 0:00:06]} Kf8 {[%emt 0:00:10]} 23. Ndc4 {[%emt 0:00:06]} Bxe5 {[%emt 0:00:16]} 24. Nxe5 {[%emt 0:00:03]} Ne8 {[%emt 0:00:03]} 25. Rhd1 {[%emt 0:00:08]} f6 {[%emt 0:00:03]} 26. Nd7+ {[%emt 0:00:02]} Ke7 {[%emt 0:00:04]} 27. Nc5 {[%emt 0:00:06]} Nc7 {[%emt 0:00:08]} 28. Rab1 {[%emt 0:00:02]} Kf7 {[%emt 0:00:09]} 29. Rb7 {[%emt 0:00:02]} Kf8 {[%emt 0:00:10]} 30. Rxc7 {[%emt 0:00:02]} Qe8 {[%emt 0:00:02]} 31. Nxe6+ {[%emt 0:00:05]} Qxe6+ {[%emt 0:00:02] Ahmetay38 terk eder} 32. Qxe6 {[%emt 0:00:02] (Lag: Av=0.58s, max=0.8s)} 1-0

[Event "Is Bankasi Online Satranc Turn 17-18 YAS"]
[Site "T#646243Mustafa Kemal"]
[Date "2020.05.22"]
[Round "4"]
[White "Ozgurkazak62"]
[Black "Kutayozkurt40"]
[Result "0-1"]
[WhiteElo "1583"]
[BlackElo "1555"]
[Annotator "NA RC"]
[PlyCount "50"]
[EventDate "2020.05.22"]
[EventType "swiss (blitz)"]
[TimeControl "180+2"]

1. e4 {[%emt 0:00:04]} c5 {[%emt 0:00:02]} 2. Nf3 {[%emt 0:00:12]} Nc6 {[%emt 0:00:02]} 3. d4 {[%emt 0:00:07]} cxd4 {[%emt 0:00:00]} 4. Nxd4 {[%emt 0:00:01]} e5 {[%emt 0:00:01]} 5. Nxc6 {[%emt 0:00:01]} bxc6 {[%emt 0:00:00]} 6. Nc3 {[%emt 0:00:01]} Nf6 {[%emt 0:00:01]} 7. Bd3 {[%emt 0:00:01]} Bb4 {[%emt 0:00:01]} 8. Bd2 {[%emt 0:00:04]} O-O {[%emt 0:00:02]} 9. O-O {[%emt 0:00:01]} d5 {[%emt 0:00:03]} 10. exd5 {[%emt 0:00:03]} cxd5 {[%emt 0:00:00]} 11. a3 {[%emt 0:00:03]} Bxc3 {[%emt 0:00:03]} 12. Bxc3 {[%emt 0:00:01]} d4 {[%emt 0:00:02]} 13. Bb4 {[%emt 0:00:01]} Re8 {[%emt 0:00:01]} 14. Bb5 {[%emt 0:00:05]} Re6 {[%emt 0:00:19]} 15. Qf3 {[%emt 0:00:07]} Rb8 {[%emt 0:00:03]} 16. Bc4 {[%emt 0:00:08]} Bb7 {[%emt 0:00:01]} 17. Qe2 {[%emt 0:00:10]} Rc6 {[%emt 0:00:06]} 18. b3 {[%emt 0:00:06]} Qc7 {[%emt 0:00:07]} 19. Rfe1 {[%emt 0:00:10]} a5 {[%emt 0:00:07]} 20. Bd2 {[%emt 0:00:09]} Rc5 {[%emt 0:00:03]} 21. b4 {[%emt 0:00:03]} Rxc4 {[%emt 0:00:02]} 22. bxa5 {[%emt 0:00:03]} Qc6 {[%emt 0:00:03]} 23. f3 {[%emt 0:00:07]} Rxc2 {[%emt 0:00:01]} 24. Qd3 {[%emt 0:00:06]} Ba6 {[%emt 0:00:02]} 25. Qe3 {[%emt 0:00:28]} dxe3 {[%emt 0:00:03] Time (Lag: Av=0.63s, max=0.9s)} 0-1

[Event "Is Bankasi Online Satranc Turn 17-18 YAS"]
[Site "T#646243Mustafa Kemal"]
[Date "2020.05.22"]
[Round "4"]
[White "Atahanbulut70"]
[Black "Mahmutemrekord40"]
[Result "1-0"]
[WhiteElo "1427"]
[BlackElo "1427"]
[Annotator "NA RC"]
[PlyCount "113"]
[EventDate "2020.05.22"]
[EventType "swiss (blitz)"]
[TimeControl "180+2"]

1. e4 {[%emt 0:00:01]} e5 {[%emt 0:00:02]} 2. Nf3 {[%emt 0:00:01]} Nc6 {[%emt 0:00:03]} 3. Nc3 {[%emt 0:00:01]} Nf6 {[%emt 0:00:03]} 4. Bb5 {[%emt 0:00:01]} Bb4 {[%emt 0:00:03]} 5. a3 {[%emt 0:00:03]} Bxc3 {[%emt 0:00:03]} 6. bxc3 {[%emt 0:00:05]} a6 {[%emt 0:00:02]} 7. Bxc6 {[%emt 0:00:01]} dxc6 {[%emt 0:00:02]} 8. Bb2 {[%emt 0:00:04]} Bg4 {[%emt 0:00:06]} 9. h3 {[%emt 0:00:05]} Bxf3 {[%emt 0:00:02]} 10. Qxf3 {[%emt 0:00:02]} g6 {[%emt 0:00:08]} 11. d3 {[%emt 0:00:05]} Nh5 {[%emt 0:00:11]} 12. c4 {[%emt 0:00:06]} b5 {[%emt 0:00:02]} 13. Bxe5 {[%emt 0:00:05]} O-O {[%emt 0:00:13]} 14. g4 {[%emt 0:00:18]} Ng7 {[%emt 0:00:14]} 15. Qf4 {[%emt 0:00:14]} f6 {[%emt 0:00:06]} 16. Bxc7 {[%emt 0:00:08]} Qe8 {[%emt 0:00:06]} 17. Bd6 {[%emt 0:00:16]} Rf7 {[%emt 0:00:02]} 18. cxb5 {[%emt 0:00:11]} axb5 {[%emt 0:00:06]} 19. h4 {[%emt 0:00:32]} h5 {[%emt 0:00:10]} 20. gxh5 {[%emt 0:00:03]} gxh5 {[%emt 0:00:01]} 21. Rg1 {[%emt 0:00:04]} Kh8 {[%emt 0:00:26]} 22. Qh6+ {[%emt 0:00:09]} Kg8 {[%emt 0:00:07]} 23. Bc5 {[%emt 0:00:10]} Qd7 {[%emt 0:00:26]} 24. Rb1 {[%emt 0:00:29]} Qh3 {[%emt 0:00:21]} 25. Bd4 {[%emt 0:00:08]} Qf3 {[%emt 0:00:06]} 26. Rg3 {[%emt 0:00:09]} Raf8 {[%emt 0:00:05]} 27. Rxf3 {[%emt 0:00:10]} f5 {[%emt 0:00:09]} 28. exf5 {[%emt 0:00:05]} Nxf5 {[%emt 0:00:03]} 29. Qxc6 {[%emt 0:00:08]} Nxd4 {[%emt 0:00:03]} 30. Qc5 {[%emt 0:00:04]} Nxf3+ {[%emt 0:00:02]} 31. Ke2 {[%emt 0:00:03]} Re7+ {[%emt 0:00:01]} 32. Qxe7 {[%emt 0:00:04]} Re8 {[%emt 0:00:03]} 33. Kxf3 {[%emt 0:00:02]} Rxe7 {[%emt 0:00:03]} 34. Kf4 {[%emt 0:00:02]} Rf7+ {[%emt 0:00:01]} 35. Ke4 {[%emt 0:00:01]} Rxf2 {[%emt 0:00:02]} 36. Kd4 {[%emt 0:00:01]} Rxc2 {[%emt 0:00:02]} 37. Kd5 {[%emt 0:00:03]} Rc3 {[%emt 0:00:02]} 38. Kd4 {[%emt 0:00:01]} Rxa3 {[%emt 0:00:02]} 39. Rc1 {[%emt 0:00:02]} b4 {[%emt 0:00:02]} 40. Rb1 {[%emt 0:00:02]} Ra4 {[%emt 0:00:02]} 41. Kc4 {[%emt 0:00:02]} b3+ {[%emt 0:00:04]} 42. Kc3 {[%emt 0:00:03]} Ra3 {[%emt 0:00:02]} 43. Kb2 {[%emt 0:00:02]} Ra2+ {[%emt 0:00:05]} 44. Kxb3 {[%emt 0:00:01]} Ra6 {[%emt 0:00:03]} 45. Rd1 {[%emt 0:00:01]} Rb6+ {[%emt 0:00:01]} 46. Kc3 {[%emt 0:00:02]} Rc6+ {[%emt 0:00:04]} 47. Kb3 {[%emt 0:00:02]} Rc5 {[%emt 0:00:01]} 48. Kb4 {[%emt 0:00:01]} Rf5 {[%emt 0:00:02]} 49. d4 {[%emt 0:00:01]} Rf4 {[%emt 0:00:02]} 50. Kc4 {[%emt 0:00:02]} Rxh4 {[%emt 0:00:02]} 51. Kc5 {[%emt 0:00:02]} Rf4 {[%emt 0:00:07]} 52. d5 {[%emt 0:00:03]} Rf5 {[%emt 0:00:01]} 53. Kc6 {[%emt 0:00:03]} Rf7 {[%emt 0:00:06]} 54. d6 {[%emt 0:00:03]} Kf8 {[%emt 0:00:02]} 55. Re1 {[%emt 0:00:02]} h4 {[%emt 0:00:03]} 56. Re3 {[%emt 0:00:02]} Rf6 {[%emt 0:00:16]} 57. Kc7 {[%emt 0:00:01] Zaman (Lag: Av=0.42s, max=0.7s)} 1-0

[Event "Is Bankasi Online Satranc Turn 17-18 YAS"]
[Site "T#646243Mustafa Kemal"]
[Date "2020.05.22"]
[Round "4"]
[White "Mehmetkozak72"]
[Black "Mustafaberkayb82"]
[Result "0-1"]
[WhiteElo "1427"]
[BlackElo "1427"]
[Annotator "NA RC"]
[PlyCount "52"]
[EventDate "2020.05.22"]
[EventType "swiss (blitz)"]
[TimeControl "180+2"]

1. e4 {[%emt 0:00:02]} e5 {[%emt 0:00:01]} 2. f4 {[%emt 0:00:01]} d5 {[%emt 0:00:09]} 3. exd5 {[%emt 0:00:08]} Qxd5 {[%emt 0:00:06]} 4. Nf3 {[%emt 0:00:02]} Bc5 {[%emt 0:00:04]} 5. Nc3 {[%emt 0:00:03]} Qd8 {[%emt 0:00:03]} 6. fxe5 {[%emt 0:00:04]} Nc6 {[%emt 0:00:04]} 7. Bc4 {[%emt 0:00:11]} Bg4 {[%emt 0:00:04]} 8. h3 {[%emt 0:00:03]} Bxf3 {[%emt 0:00:06]} 9. Qxf3 {[%emt 0:00:00]} Qh4+ {[%emt 0:00:06]} 10. g3 {[%emt 0:00:11]} Qxc4 {[%emt 0:00:04]} 11. d3 {[%emt 0:00:04]} Qe6 {[%emt 0:00:08]} 12. Bf4 {[%emt 0:00:06]} O-O-O {[%emt 0:00:08]} 13. O-O-O {[%emt 0:00:02]} f6 {[%emt 0:00:03]} 14. exf6 {[%emt 0:00:04]} Nxf6 {[%emt 0:00:00]} 15. Rhe1 {[%emt 0:00:01]} Qxh3 {[%emt 0:00:05]} 16. Na4 {[%emt 0:00:14]} Bd6 {[%emt 0:00:09]} 17. Bxd6 {[%emt 0:00:09]} Rxd6 {[%emt 0:00:00]} 18. Nc5 {[%emt 0:00:10]} Nd4 {[%emt 0:00:13]} 19. Qxb7+ {[%emt 0:00:12]} Kd8 {[%emt 0:00:14]} 20. Qb8+ {[%emt 0:00:02]} Qc8 {[%emt 0:00:10]} 21. Nb7+ {[%emt 0:00:17]} Kd7 {[%emt 0:00:08]} 22. Nc5+ {[%emt 0:00:04]} Kd8 {[%emt 0:00:11]} 23. Nb7+ {[%emt 0:00:03]} Kd7 {[%emt 0:00:01]} 24. Nc5+ {[%emt 0:00:04]} Kc6 {[%emt 0:00:02]} 25. Qb7+ {[%emt 0:00:09]} Qxb7 {[%emt 0:00:02]} 26. Nxb7 {[%emt 0:00:02]} Kxb7 {[%emt 0:00:00] Mehmetkozak72 terk eder (Lag: Av=0.45s, max=1.0s)} 0-1